[Event "Titled Tuesday Blitz February 28 Late 2023"]
[White "Matinian, Nikita"]
[Black "Sabar, Ethmane Daouda"]
[WhiteFideId "24129100"]
[BlackFideId "19600097"]
[WhiteElo "2422"]
[BlackElo "1950"]
[Result "1-0"]
[Round "02"]
[TimeControl "180+2"]
[Date "2023.02.28"]
[WhiteClock "0:00:56"]
[BlackClock "0:00:05"]

1. e4 {[%clk 0:02:51]}  e5 {[%clk 0:02:57]} 2. Nf3 {[%clk 0:02:52]}  Nc6 {[%clk 0:02:57]} 3. Bb5 {[%clk 0:02:52]}  f5 {[%clk 0:02:57]} 4. Nc3 {[%clk 0:02:52]}  fxe4 {[%clk 0:02:57]} 5. Nxe4 {[%clk 0:02:53]}  d5 {[%clk 0:02:56]} 6. Nxe5 {[%clk 0:02:53]}  dxe4 {[%clk 0:02:57]} 7. Nxc6 {[%clk 0:02:51]}  Qg5 {[%clk 0:02:57]} 8. Qe2 {[%clk 0:02:40]}  Nf6 {[%clk 0:02:57]} 9. f4 {[%clk 0:02:28]}  Qxf4 {[%clk 0:02:53]} 10. d4 {[%clk 0:02:27]}  Qh4+ {[%clk 0:02:43]} 11. g3 {[%clk 0:02:26]}  Qh3 {[%clk 0:02:42]} 12. Ne5+ {[%clk 0:02:24]}  c6 {[%clk 0:02:35]} 13. Nxc6 {[%clk 0:02:24]}  a6 {[%clk 0:02:32]} 14. Ba4 {[%clk 0:02:18]}  Bd7 {[%clk 0:02:30]} 15. d5 {[%clk 0:02:15]}  Bd6 {[%clk 0:02:04]} 16. Bg5 {[%clk 0:02:11]}  Bxg3+ {[%clk 0:02:02]} 17. Kd2 {[%clk 0:02:05]}  Bh4 {[%clk 0:01:02]} 18. Rhg1 {[%clk 0:01:26]}  Bxg5+ {[%clk 0:00:39]} 19. Rxg5 {[%clk 0:01:26]}  e3+ {[%clk 0:00:40]} 20. Qxe3+ {[%clk 0:01:25]}  Qxe3+ {[%clk 0:00:40]} 21. Kxe3 {[%clk 0:01:25]}  bxc6 {[%clk 0:00:31]} 22. dxc6 {[%clk 0:01:26]}  Be6 {[%clk 0:00:31]} 23. Rxg7 {[%clk 0:01:24]}  Nd5+ {[%clk 0:00:28]} 24. Kd4 {[%clk 0:01:16]}  O-O-O {[%clk 0:00:26]} 25. Kc5 {[%clk 0:01:15]}  Rhg8 {[%clk 0:00:19]} 26. Rag1 {[%clk 0:01:12]}  Rxg7 {[%clk 0:00:17]} 27. Rxg7 {[%clk 0:01:13]}  Nc7 {[%clk 0:00:14]} 28. c4 {[%clk 0:01:11]}  Rg8 {[%clk 0:00:06]} 29. Rxh7 {[%clk 0:01:04]}  Rg5+ {[%clk 0:00:04]} 30. Kb6 {[%clk 0:01:01]}  Ne8 {[%clk 0:00:05]} 31. Re7 {[%clk 0:00:56]} 1-0


[Site "https://www.chess.com"]

[Event "Titled Tuesday Blitz February 28 Late 2023"]
[White "Caspi, Israel"]
[Black "Vanek, Tomas"]
[WhiteFideId "2807394"]
[BlackFideId "313459"]
[WhiteElo "2419"]
[BlackElo "2052"]
[Result "1-0"]
[Round "02"]
[TimeControl "180+2"]
[Date "2023.02.28"]
[WhiteClock "0:01:46"]
[BlackClock "0:00:14"]

1. d4 {[%clk 0:03:00]}  f5 {[%clk 0:02:58]} 2. Qd3 {[%clk 0:02:56]}  Nf6 {[%clk 0:02:29]} 3. Qxf5 {[%clk 0:02:55]}  d5 {[%clk 0:02:29]} 4. Qd3 {[%clk 0:02:55]}  c5 {[%clk 0:02:25]} 5. c3 {[%clk 0:02:42]}  Nc6 {[%clk 0:02:18]} 6. Nf3 {[%clk 0:02:42]}  g6 {[%clk 0:02:14]} 7. Bf4 {[%clk 0:02:34]}  Bf5 {[%clk 0:02:13]} 8. Qd1 {[%clk 0:02:29]}  cxd4 {[%clk 0:02:09]} 9. cxd4 {[%clk 0:02:28]}  e6 {[%clk 0:02:04]} 10. Nc3 {[%clk 0:02:27]}  Nb4 {[%clk 0:01:59]} 11. Rc1 {[%clk 0:02:24]}  Rc8 {[%clk 0:01:55]} 12. a3 {[%clk 0:02:22]}  Nc6 {[%clk 0:01:41]} 13. e3 {[%clk 0:02:22]}  Bg7 {[%clk 0:01:30]} 14. Be2 {[%clk 0:02:22]}  O-O {[%clk 0:01:29]} 15. O-O {[%clk 0:02:22]}  a6 {[%clk 0:01:27]} 16. h3 {[%clk 0:02:22]}  h6 {[%clk 0:01:08]} 17. Bh2 {[%clk 0:02:21]}  g5 {[%clk 0:01:07]} 18. Ne5 {[%clk 0:02:16]}  Nxe5 {[%clk 0:01:06]} 19. Bxe5 {[%clk 0:02:15]}  Qe8 {[%clk 0:01:01]} 20. Qb3 {[%clk 0:02:09]}  b5 {[%clk 0:00:57]} 21. a4 {[%clk 0:02:09]}  Qg6 {[%clk 0:00:52]} 22. axb5 {[%clk 0:02:00]}  axb5 {[%clk 0:00:52]} 23. Nxb5 {[%clk 0:01:54]}  Rxc1 {[%clk 0:00:51]} 24. Rxc1 {[%clk 0:01:53]}  g4 {[%clk 0:00:51]} 25. h4 {[%clk 0:01:52]}  Ne4 {[%clk 0:00:35]} 26. Bxg7 {[%clk 0:01:52]}  Kxg7 {[%clk 0:00:28]} 27. Rc7+ {[%clk 0:01:51]}  Kf6 {[%clk 0:00:25]} 28. Qb4 {[%clk 0:01:49]}  Rf7 {[%clk 0:00:19]} 29. Rxf7+ {[%clk 0:01:48]}  Qxf7 {[%clk 0:00:19]} 30. Nd6 {[%clk 0:01:47]}  Qe7 {[%clk 0:00:16]} 31. Nxe4+ {[%clk 0:01:46]}  Bxe4 {[%clk 0:00:16]} 32. Qxe7+ {[%clk 0:01:46]}  Kxe7 {[%clk 0:00:17]} 33. Bxg4 {[%clk 0:01:47]}  Bc2 {[%clk 0:00:17]} 34. Be2 {[%clk 0:01:46]}  Bb3 {[%clk 0:00:16]} 35. g4 {[%clk 0:01:45]}  Kf6 {[%clk 0:00:16]} 36. f4 {[%clk 0:01:46]}  Bc2 {[%clk 0:00:15]} 37. b4 {[%clk 0:01:45]}  Ba4 {[%clk 0:00:15]} 38. b5 {[%clk 0:01:45]}  Kg6 {[%clk 0:00:15]} 39. g5 {[%clk 0:01:46]}  hxg5 {[%clk 0:00:14]} 40. hxg5 {[%clk 0:01:46]}  Kf5 {[%clk 0:00:14]} 41. Bd3+ {[%clk 0:01:46]}  Kg4 {[%clk 0:00:14]} 42. g6 {[%clk 0:01:47]}  Kf3 {[%clk 0:00:14]} 43. g7 {[%clk 0:01:46]} 1-0


[Site "https://www.chess.com"]

[Event "Titled Tuesday Blitz February 28 Late 2023"]
[White "Ferreira, Vitor Hugo Vieira"]
[Black "Ibarra Jerez, Jose Carlos"]
[WhiteFideId "2119765"]
[BlackFideId "2226332"]
[WhiteElo "2146"]
[BlackElo "2638"]
[Result "1/2-1/2"]
[Round "02"]
[TimeControl "180+2"]
[Date "2023.02.28"]
[WhiteClock "0:00:08"]
[BlackClock "0:00:08"]

1. Nf3 {[%clk 0:02:55]}  d6 {[%clk 0:02:59]} 2. g3 {[%clk 0:02:48]}  Nf6 {[%clk 0:02:59]} 3. Bg2 {[%clk 0:02:48]}  g6 {[%clk 0:03:00]} 4. O-O {[%clk 0:02:48]}  Bg7 {[%clk 0:03:00]} 5. c4 {[%clk 0:02:47]}  O-O {[%clk 0:03:01]} 6. d4 {[%clk 0:02:44]}  Bf5 {[%clk 0:03:00]} 7. Nc3 {[%clk 0:02:44]}  Ne4 {[%clk 0:03:00]} 8. Qb3 {[%clk 0:02:31]}  Nxc3 {[%clk 0:03:00]} 9. bxc3 {[%clk 0:02:29]}  Be4 {[%clk 0:03:00]} 10. Bg5 {[%clk 0:02:25]}  h6 {[%clk 0:02:57]} 11. Bf4 {[%clk 0:02:23]}  b6 {[%clk 0:02:53]} 12. a4 {[%clk 0:02:21]}  Nc6 {[%clk 0:02:53]} 13. Nd2 {[%clk 0:02:16]}  Bxg2 {[%clk 0:02:51]} 14. Kxg2 {[%clk 0:02:17]}  Na5 {[%clk 0:02:29]} 15. Qb5 {[%clk 0:02:08]}  c6 {[%clk 0:02:27]} 16. Qb4 {[%clk 0:02:08]}  c5 {[%clk 0:02:27]} 17. Qb2 {[%clk 0:01:59]}  e5 {[%clk 0:02:03]} 18. Be3 {[%clk 0:01:55]}  Re8 {[%clk 0:01:55]} 19. d5 {[%clk 0:01:55]}  f5 {[%clk 0:01:54]} 20. f3 {[%clk 0:01:54]}  Qf6 {[%clk 0:01:50]} 21. Rac1 {[%clk 0:01:51]}  g5 {[%clk 0:01:46]} 22. Bg1 {[%clk 0:01:47]}  Qg6 {[%clk 0:01:36]} 23. e4 {[%clk 0:01:46]}  fxe4 {[%clk 0:01:35]} 24. Nxe4 {[%clk 0:01:40]}  Nxc4 {[%clk 0:01:28]} 25. Qe2 {[%clk 0:01:40]}  Na5 {[%clk 0:01:26]} 26. g4 {[%clk 0:01:34]}  c4 {[%clk 0:01:18]} 27. Ng3 {[%clk 0:01:33]}  Qd3 {[%clk 0:01:11]} 28. Qxd3 {[%clk 0:00:49]}  cxd3 {[%clk 0:01:12]} 29. Rfd1 {[%clk 0:00:49]}  d2 {[%clk 0:01:12]} 30. Rc2 {[%clk 0:00:47]}  Nc4 {[%clk 0:01:08]} 31. Ne4 {[%clk 0:00:41]}  Rac8 {[%clk 0:01:08]} 32. Kf1 {[%clk 0:00:32]}  Rf8 {[%clk 0:01:03]} 33. Ke2 {[%clk 0:00:33]}  Rf4 {[%clk 0:01:03]} 34. h3 {[%clk 0:00:27]}  Rcf8 {[%clk 0:01:00]} 35. Kd3 {[%clk 0:00:27]}  Rxf3+ {[%clk 0:00:42]} 36. Kxc4 {[%clk 0:00:27]}  R8f4 {[%clk 0:00:42]} 37. Rdxd2 {[%clk 0:00:24]}  Rxe4+ {[%clk 0:00:42]} 38. Kb5 {[%clk 0:00:25]}  Rxh3 {[%clk 0:00:41]} 39. Kc6 {[%clk 0:00:21]}  Bf8 {[%clk 0:00:40]} 40. a5 {[%clk 0:00:20]}  Rxg4 {[%clk 0:00:27]} 41. axb6 {[%clk 0:00:19]}  axb6 {[%clk 0:00:27]} 42. Bxb6 {[%clk 0:00:18]}  Rc4+ {[%clk 0:00:27]} 43. Kd7 {[%clk 0:00:18]}  Rcxc3 {[%clk 0:00:27]} 44. Rxc3 {[%clk 0:00:17]}  Rxc3 {[%clk 0:00:27]} 45. Bc7 {[%clk 0:00:18]}  Rxc7+ {[%clk 0:00:09]} 46. Kxc7 {[%clk 0:00:17]}  g4 {[%clk 0:00:10]} 47. Kd7 {[%clk 0:00:13]}  Kg7 {[%clk 0:00:09]} 48. Ke6 {[%clk 0:00:14]}  Kg6 {[%clk 0:00:09]} 49. Rf2 {[%clk 0:00:14]}  Kg7 {[%clk 0:00:02]} 50. Kf5 {[%clk 0:00:12]}  h5 {[%clk 0:00:03]} 51. Kg5 {[%clk 0:00:12]}  e4 {[%clk 0:00:02]} 52. Kxh5 {[%clk 0:00:12]}  e3 {[%clk 0:00:03]} 53. Re2 {[%clk 0:00:13]}  Kf6 {[%clk 0:00:03]} 54. Kxg4 {[%clk 0:00:13]}  Ke5 {[%clk 0:00:03]} 55. Rxe3+ {[%clk 0:00:12]}  Kxd5 {[%clk 0:00:04]} 56. Re8 {[%clk 0:00:12]}  Bg7 {[%clk 0:00:04]} 57. Rg8 {[%clk 0:00:12]}  Be5 {[%clk 0:00:05]} 58. Kf5 {[%clk 0:00:11]}  Kd4 {[%clk 0:00:05]} 59. Rg4+ {[%clk 0:00:11]}  Kd5 {[%clk 0:00:05]} 60. Ra4 {[%clk 0:00:11]}  Bd4 {[%clk 0:00:05]} 61. Ra5+ {[%clk 0:00:10]}  Bc5 {[%clk 0:00:06]} 62. Ra2 {[%clk 0:00:10]}  Kc4 {[%clk 0:00:06]} 63. Rc2+ {[%clk 0:00:10]}  Kd3 {[%clk 0:00:06]} 64. Ra2 {[%clk 0:00:10]}  d5 {[%clk 0:00:06]} 65. Ke5 {[%clk 0:00:10]}  d4 {[%clk 0:00:07]} 66. Kd5 {[%clk 0:00:10]}  Bb4 {[%clk 0:00:07]} 67. Ra4 {[%clk 0:00:10]}  Bc3 {[%clk 0:00:08]} 68. Rxd4+ {[%clk 0:00:08]}  Bxd4 {[%clk 0:00:08]} 1/2-1/2


[Site "https://www.chess.com"]

[Event "Titled Tuesday Blitz February 28 Late 2023"]
[White "Bernadskiy, Vitaliy"]
[Black "Aydin, Gulenay"]
[WhiteFideId "14100371"]
[BlackFideId "34557431"]
[WhiteElo "2488"]
[BlackElo "2009"]
[Result "1/2-1/2"]
[Round "02"]
[TimeControl "180+2"]
[Date "2023.02.28"]
[WhiteClock "0:00:10"]
[BlackClock "0:00:14"]

1. d4 {[%clk 0:03:00]}  Nf6 {[%clk 0:03:00]} 2. Nf3 {[%clk 0:02:59]}  g6 {[%clk 0:03:00]} 3. Nc3 {[%clk 0:02:59]}  d5 {[%clk 0:03:00]} 4. Bf4 {[%clk 0:02:58]}  Bg7 {[%clk 0:03:00]} 5. e3 {[%clk 0:02:58]}  O-O {[%clk 0:02:58]} 6. h4 {[%clk 0:02:58]}  h5 {[%clk 0:02:58]} 7. Ne5 {[%clk 0:02:55]}  c5 {[%clk 0:02:58]} 8. Be2 {[%clk 0:02:55]}  Nc6 {[%clk 0:02:56]} 9. Qd2 {[%clk 0:02:54]}  cxd4 {[%clk 0:02:50]} 10. exd4 {[%clk 0:02:55]}  Be6 {[%clk 0:02:48]} 11. O-O-O {[%clk 0:02:54]}  Rc8 {[%clk 0:02:42]} 12. Kb1 {[%clk 0:02:54]}  a6 {[%clk 0:02:41]} 13. f3 {[%clk 0:02:49]}  b5 {[%clk 0:02:26]} 14. Nxc6 {[%clk 0:02:48]}  Rxc6 {[%clk 0:02:26]} 15. Bd3 {[%clk 0:02:49]}  Qb6 {[%clk 0:02:17]} 16. Be5 {[%clk 0:02:47]}  Rfc8 {[%clk 0:02:15]} 17. Ne2 {[%clk 0:02:45]}  a5 {[%clk 0:02:00]} 18. g4 {[%clk 0:02:43]}  a4 {[%clk 0:01:44]} 19. Nf4 {[%clk 0:02:41]}  a3 {[%clk 0:01:32]} 20. gxh5 {[%clk 0:02:37]}  axb2 {[%clk 0:00:59]} 21. hxg6 {[%clk 0:02:34]}  Ra8 {[%clk 0:00:53]} 22. gxf7+ {[%clk 0:02:30]}  Bxf7 {[%clk 0:00:52]} 23. Qb4 {[%clk 0:01:46]}  Qa7 {[%clk 0:00:43]} 24. a3 {[%clk 0:01:33]}  Ra6 {[%clk 0:00:31]} 25. Kxb2 {[%clk 0:01:29]}  Rxa3 {[%clk 0:00:31]} 26. Kc1 {[%clk 0:01:29]}  Bh6 {[%clk 0:00:23]} 27. Kd2 {[%clk 0:01:25]}  Ra4 {[%clk 0:00:16]} 28. Qc3 {[%clk 0:01:16]}  Nd7 {[%clk 0:00:15]} 29. Rdg1+ {[%clk 0:00:50]}  Kf8 {[%clk 0:00:15]} 30. Qc7 {[%clk 0:00:44]}  Qxc7 {[%clk 0:00:04]} 31. Bxc7 {[%clk 0:00:44]}  Rxd4 {[%clk 0:00:05]} 32. Rg5 {[%clk 0:00:39]}  Rc8 {[%clk 0:00:03]} 33. Ke3 {[%clk 0:00:28]}  Ra4 {[%clk 0:00:03]} 34. Bxb5 {[%clk 0:00:24]}  Ra7 {[%clk 0:00:03]} 35. Bxd7 {[%clk 0:00:23]}  Rcxc7 {[%clk 0:00:04]} 36. Bf5 {[%clk 0:00:21]}  Bxg5 {[%clk 0:00:04]} 37. hxg5 {[%clk 0:00:21]}  Ra3+ {[%clk 0:00:03]} 38. Kf2 {[%clk 0:00:20]}  Rc4 {[%clk 0:00:04]} 39. Kg3 {[%clk 0:00:20]}  Raa4 {[%clk 0:00:04]} 40. Nd3 {[%clk 0:00:16]}  Kg7 {[%clk 0:00:04]} 41. Ne5 {[%clk 0:00:15]}  Rc3 {[%clk 0:00:05]} 42. g6 {[%clk 0:00:15]}  Bg8 {[%clk 0:00:05]} 43. Ng4 {[%clk 0:00:11]}  Raa3 {[%clk 0:00:05]} 44. Bd3 {[%clk 0:00:11]}  Be6 {[%clk 0:00:03]} 45. Rh7+ {[%clk 0:00:10]}  Kf8 {[%clk 0:00:03]} 46. g7+ {[%clk 0:00:10]}  Ke8 {[%clk 0:00:03]} 47. Ne5 {[%clk 0:00:09]}  Kd8 {[%clk 0:00:03]} 48. Rh8+ {[%clk 0:00:09]}  Kc7 {[%clk 0:00:04]} 49. g8=Q {[%clk 0:00:09]}  Bxg8 {[%clk 0:00:04]} 50. Rxg8 {[%clk 0:00:10]}  Kd6 {[%clk 0:00:05]} 51. Kf4 {[%clk 0:00:09]}  Ra4+ {[%clk 0:00:04]} 52. Kf5 {[%clk 0:00:07]}  e6+ {[%clk 0:00:03]} 53. Kf6 {[%clk 0:00:06]}  Rf4+ {[%clk 0:00:04]} 54. Kg5 {[%clk 0:00:06]}  Kxe5 {[%clk 0:00:05]} 55. Re8 {[%clk 0:00:06]}  Rc7 {[%clk 0:00:04]} 56. Rxe6+ {[%clk 0:00:05]}  Kxe6 {[%clk 0:00:05]} 57. Kxf4 {[%clk 0:00:05]}  Rf7+ {[%clk 0:00:05]} 58. Ke3 {[%clk 0:00:06]}  Rc7 {[%clk 0:00:06]} 59. Kd2 {[%clk 0:00:06]}  Kd6 {[%clk 0:00:07]} 60. Ke3 {[%clk 0:00:07]}  Rf7 {[%clk 0:00:08]} 61. f4 {[%clk 0:00:07]}  Re7+ {[%clk 0:00:08]} 62. Kd4 {[%clk 0:00:07]}  Rf7 {[%clk 0:00:09]} 63. f5 {[%clk 0:00:07]}  Ra7 {[%clk 0:00:09]} 64. c4 {[%clk 0:00:07]}  dxc4 {[%clk 0:00:09]} 65. Bxc4 {[%clk 0:00:08]}  Ke7 {[%clk 0:00:10]} 66. Ke5 {[%clk 0:00:08]}  Ra5+ {[%clk 0:00:10]} 67. Bd5 {[%clk 0:00:09]}  Kf8 {[%clk 0:00:11]} 68. f6 {[%clk 0:00:08]}  Ra6 {[%clk 0:00:11]} 69. Be6 {[%clk 0:00:08]}  Ra1 {[%clk 0:00:11]} 70. Bd5 {[%clk 0:00:08]}  Re1+ {[%clk 0:00:12]} 71. Kd6 {[%clk 0:00:08]}  Rf1 {[%clk 0:00:12]} 72. Ke6 {[%clk 0:00:08]}  Rf2 {[%clk 0:00:13]} 73. Ke5 {[%clk 0:00:09]}  Rf1 {[%clk 0:00:13]} 74. Ke6 {[%clk 0:00:09]}  Re1+ {[%clk 0:00:13]} 75. Kd6 {[%clk 0:00:10]}  Rf1 {[%clk 0:00:14]} 76. Ke6 {[%clk 0:00:10]} 1/2-1/2


[Site "https://www.chess.com"]

[Event "Titled Tuesday Blitz February 28 Late 2023"]
[White "Aguilar, Juan"]
[Black "Garcia Ramos, Daniel"]
[WhiteFideId "3800091"]
[BlackFideId "32010311"]
[WhiteElo "2401"]
[BlackElo "2341"]
[Result "0-1"]
[Round "02"]
[TimeControl "180+2"]
[Date "2023.02.28"]
[WhiteClock "0:00:02"]
[BlackClock "0:00:10"]

1. Nf3 {[%clk 0:03:00]}  Nf6 {[%clk 0:02:58]} 2. g3 {[%clk 0:03:01]}  b6 {[%clk 0:02:58]} 3. Bg2 {[%clk 0:03:01]}  Bb7 {[%clk 0:02:59]} 4. O-O {[%clk 0:03:01]}  g6 {[%clk 0:03:00]} 5. b3 {[%clk 0:02:58]}  Bg7 {[%clk 0:03:00]} 6. Bb2 {[%clk 0:02:58]}  O-O {[%clk 0:03:01]} 7. c4 {[%clk 0:02:54]}  e6 {[%clk 0:02:58]} 8. Nc3 {[%clk 0:02:42]}  Ne4 {[%clk 0:02:55]} 9. Qc2 {[%clk 0:02:36]}  Nxc3 {[%clk 0:02:47]} 10. Bxc3 {[%clk 0:02:36]}  Bxc3 {[%clk 0:02:39]} 11. Qxc3 {[%clk 0:02:35]}  c5 {[%clk 0:02:40]} 12. h4 {[%clk 0:02:24]}  h5 {[%clk 0:02:36]} 13. Rad1 {[%clk 0:02:14]}  Qe7 {[%clk 0:02:28]} 14. e3 {[%clk 0:01:48]}  Na6 {[%clk 0:02:21]} 15. Ng5 {[%clk 0:01:30]}  Bxg2 {[%clk 0:02:20]} 16. Kxg2 {[%clk 0:01:30]}  d5 {[%clk 0:02:13]} 17. cxd5 {[%clk 0:01:17]}  exd5 {[%clk 0:02:13]} 18. d4 {[%clk 0:01:16]}  Rfd8 {[%clk 0:01:50]} 19. Rfe1 {[%clk 0:01:04]}  Rac8 {[%clk 0:01:44]} 20. e4 {[%clk 0:00:42]}  dxe4 {[%clk 0:01:39]} 21. d5 {[%clk 0:00:34]}  c4 {[%clk 0:00:40]} 22. Nxe4 {[%clk 0:00:29]}  cxb3 {[%clk 0:00:34]} 23. Qxb3 {[%clk 0:00:20]}  Nc5 {[%clk 0:00:29]} 24. d6 {[%clk 0:00:12]}  Qb7 {[%clk 0:00:21]} 25. Qf3 {[%clk 0:00:09]}  Nxe4 {[%clk 0:00:20]} 26. Rxe4 {[%clk 0:00:09]}  Rd7 {[%clk 0:00:12]} 27. Kg1 {[%clk 0:00:06]}  Rcd8 {[%clk 0:00:11]} 28. Qf4 {[%clk 0:00:03]}  Kg7 {[%clk 0:00:10]} 29. Qe5+ {[%clk 0:00:03]}  f6 {[%clk 0:00:11]} 30. Qe7+ {[%clk 0:00:02]}  Rxe7 {[%clk 0:00:09]} 31. Rxe7+ {[%clk 0:00:03]}  Qxe7 {[%clk 0:00:09]} 32. dxe7 {[%clk 0:00:03]}  Rxd1+ {[%clk 0:00:09]} 33. Kg2 {[%clk 0:00:02]}  Re1 {[%clk 0:00:10]} 0-1


[Site "https://www.chess.com"]

[Event "Titled Tuesday Blitz February 28 Late 2023"]
[White "Benaddi, Mouhcine"]
[Black "Papasimakopoulos, Alexandros"]
[WhiteFideId "9001050"]
[BlackFideId "4244125"]
[WhiteElo "2036"]
[BlackElo "2359"]
[Result "1-0"]
[Round "02"]
[TimeControl "180+2"]
[Date "2023.02.28"]
[WhiteClock "0:01:12"]
[BlackClock "0:00:04"]

1. Nf3 {[%clk 0:03:00]}  d5 {[%clk 0:02:59]} 2. g3 {[%clk 0:03:01]}  Nf6 {[%clk 0:02:58]} 3. Bg2 {[%clk 0:03:01]}  Bf5 {[%clk 0:02:58]} 4. c4 {[%clk 0:03:01]}  e6 {[%clk 0:02:56]} 5. cxd5 {[%clk 0:03:01]}  exd5 {[%clk 0:02:56]} 6. Qb3 {[%clk 0:03:02]}  b6 {[%clk 0:02:50]} 7. O-O {[%clk 0:02:59]}  c6 {[%clk 0:02:49]} 8. Nc3 {[%clk 0:02:52]}  Bd6 {[%clk 0:02:40]} 9. d3 {[%clk 0:02:51]}  O-O {[%clk 0:02:35]} 10. Bg5 {[%clk 0:02:38]}  Be6 {[%clk 0:02:23]} 11. Nd4 {[%clk 0:02:34]}  h6 {[%clk 0:02:18]} 12. Nxe6 {[%clk 0:02:32]}  fxe6 {[%clk 0:02:17]} 13. Bd2 {[%clk 0:02:31]}  Nbd7 {[%clk 0:02:17]} 14. e4 {[%clk 0:02:31]}  Bc5 {[%clk 0:02:09]} 15. Bh3 {[%clk 0:02:19]}  Ne5 {[%clk 0:01:51]} 16. Bxe6+ {[%clk 0:02:13]}  Kh8 {[%clk 0:01:47]} 17. Be3 {[%clk 0:02:00]}  d4 {[%clk 0:01:40]} 18. Bf4 {[%clk 0:01:58]}  Nxd3 {[%clk 0:01:35]} 19. Ne2 {[%clk 0:01:50]}  Nxf4 {[%clk 0:01:05]} 20. Nxf4 {[%clk 0:01:50]}  Qe8 {[%clk 0:01:05]} 21. Bf5 {[%clk 0:01:46]}  Rf7 {[%clk 0:00:49]} 22. Bg6 {[%clk 0:01:42]}  Kg8 {[%clk 0:00:47]} 23. e5 {[%clk 0:01:39]}  Qxe5 {[%clk 0:00:17]} 24. Qxf7+ {[%clk 0:01:38]}  Kh8 {[%clk 0:00:17]} 25. Rae1 {[%clk 0:01:32]}  Qg5 {[%clk 0:00:16]} 26. Ne6 {[%clk 0:01:31]}  Rg8 {[%clk 0:00:12]} 27. Nxg5 {[%clk 0:01:30]}  hxg5 {[%clk 0:00:13]} 28. Re5 {[%clk 0:01:23]}  Rf8 {[%clk 0:00:12]} 29. Qxa7 {[%clk 0:01:21]}  d3 {[%clk 0:00:11]} 30. Bxd3 {[%clk 0:01:19]}  Ng4 {[%clk 0:00:11]} 31. Rxg5 {[%clk 0:01:18]}  Nxf2 {[%clk 0:00:08]} 32. Rh5+ {[%clk 0:01:17]}  Kg8 {[%clk 0:00:08]} 33. Bh7+ {[%clk 0:01:17]}  Kh8 {[%clk 0:00:08]} 34. Bg6+ {[%clk 0:01:16]}  Kg8 {[%clk 0:00:09]} 35. Kg2 {[%clk 0:01:13]}  Ng4 {[%clk 0:00:04]} 36. Rxf8+ {[%clk 0:01:12]}  Kxf8 {[%clk 0:00:04]} 37. Qf7# {[%clk 0:01:12]} 1-0


[Site "https://www.chess.com"]

[Event "Titled Tuesday Blitz February 28 Late 2023"]
[White "Sarkar, Justin"]
[Black "Zhu, Jiner"]
[WhiteFideId "2010011"]
[BlackFideId "8608059"]
[WhiteElo "2189"]
[BlackElo "2384"]
[Result "0-1"]
[Round "02"]
[TimeControl "180+2"]
[Date "2023.02.28"]
[WhiteClock "0:00:01"]
[BlackClock "0:00:16"]

1. d4 {[%clk 0:02:58]}  Nf6 {[%clk 0:02:59]} 2. c4 {[%clk 0:02:57]}  g6 {[%clk 0:02:58]} 3. Nc3 {[%clk 0:02:55]}  Bg7 {[%clk 0:02:59]} 4. e4 {[%clk 0:02:54]}  d6 {[%clk 0:03:00]} 5. h3 {[%clk 0:02:51]}  O-O {[%clk 0:02:59]} 6. Bg5 {[%clk 0:02:50]}  c5 {[%clk 0:02:58]} 7. d5 {[%clk 0:02:46]}  e6 {[%clk 0:02:54]} 8. Bd3 {[%clk 0:02:42]}  h6 {[%clk 0:02:44]} 9. Be3 {[%clk 0:02:39]}  exd5 {[%clk 0:02:43]} 10. exd5 {[%clk 0:02:35]}  Nbd7 {[%clk 0:02:35]} 11. Nf3 {[%clk 0:02:32]}  Re8 {[%clk 0:02:32]} 12. O-O {[%clk 0:02:26]}  a6 {[%clk 0:02:30]} 13. Qd2 {[%clk 0:02:24]}  Kh7 {[%clk 0:02:29]} 14. a4 {[%clk 0:02:21]}  Ne5 {[%clk 0:02:27]} 15. Nxe5 {[%clk 0:02:20]}  Rxe5 {[%clk 0:02:28]} 16. a5 {[%clk 0:02:09]}  Re8 {[%clk 0:02:26]} 17. Na4 {[%clk 0:02:00]}  Nd7 {[%clk 0:02:25]} 18. Ra3 {[%clk 0:01:47]}  Rb8 {[%clk 0:02:23]} 19. b4 {[%clk 0:01:45]}  cxb4 {[%clk 0:02:11]} 20. Qxb4 {[%clk 0:01:45]}  Ne5 {[%clk 0:02:08]} 21. Bc2 {[%clk 0:01:32]}  Qe7 {[%clk 0:01:58]} 22. Nb6 {[%clk 0:01:25]}  Nd7 {[%clk 0:01:17]} 23. Nxd7 {[%clk 0:01:06]}  Bxd7 {[%clk 0:01:17]} 24. c5 {[%clk 0:01:05]}  dxc5 {[%clk 0:01:00]} 25. Bxc5 {[%clk 0:01:05]}  Qg5 {[%clk 0:01:00]} 26. d6 {[%clk 0:00:44]}  Re2 {[%clk 0:00:41]} 27. Be3 {[%clk 0:00:32]}  Qd5 {[%clk 0:00:33]} 28. Be4 {[%clk 0:00:31]}  Qe6 {[%clk 0:00:25]} 29. Bf3 {[%clk 0:00:30]}  Rb2 {[%clk 0:00:24]} 30. Qe4 {[%clk 0:00:21]}  Qxd6 {[%clk 0:00:24]} 31. Bf4 {[%clk 0:00:17]}  Qxa3 {[%clk 0:00:23]} 32. Bxb8 {[%clk 0:00:15]}  Bc6 {[%clk 0:00:23]} 33. Qf4 {[%clk 0:00:06]}  Bxf3 {[%clk 0:00:23]} 34. gxf3 {[%clk 0:00:04]}  Qe7 {[%clk 0:00:21]} 35. Bd6 {[%clk 0:00:03]}  Qg5+ {[%clk 0:00:19]} 36. Qxg5 {[%clk 0:00:03]}  hxg5 {[%clk 0:00:20]} 37. Re1 {[%clk 0:00:01]}  Bd4 {[%clk 0:00:20]} 38. Re7 {[%clk 0:00:01]}  Kg8 {[%clk 0:00:16]} 0-1


[Site "https://www.chess.com"]